[Event "DFMM-LV 2023"]
[Site "Braunfels"]
[Date "2023.06.10"]
[Round "4.16"]
[White "Sokyrko, Sofiia"]
[Black "Albayrak, Aylin"]
[Result "1/2-1/2"]
[Annotator "NA RC COMBH"]
[ECO "B21"]
[WhiteElo "1503"]
[BlackElo "1690"]
[PlyCount "160"]
[EventDate "2023.06.09"]
[EventType "team-tourn"]
[EventCountry "GER"]
[SourceTitle "playchess.com"]
[Source "ChessBase"]
[SourceQuality "1"]
[TimeControl "40/5400+30:1800+30"]

1. e4 {[%emt 0:00:02]} c5 {[%emt 0:00:04]} 2. d4 {[%emt 0:00:09]} cxd4 {[%emt 0:00:05]} 3. c3 {[%emt 0:00:07]} dxc3 {[%emt 0:00:08]} 4. Nxc3 {[%emt 0:00:07]} Nc6 {[%emt 0:00:28]} 5. Nf3 {[%emt 0:00:22]} e6 {[%emt 0:00:17]} 6. Bc4 {[%emt 0:00:16]} Bb4 {[%emt 0:00:59]} 7. Bd2 {[%emt 0:03:29]} Nf6 {[%emt 0:01:29]} 8. Qe2 {[%emt 0:03:09]} O-O {[%emt 0:02:18]} 9. O-O {[%emt 0:02:07]} Qc7 {[%emt 0:02:42]} 10. Nb5 {[%emt 0:04:46]} Qa5 {[%emt 0:01:43]} 11. Bg5 {[%emt 0:00:47]} Ne8 {[%emt 0:00:51]} 12. a3 {[%emt 0:00:21]} Be7 {[%emt 0:00:26]} 13. b4 {[%emt 0:00:37]} Qd8 {[%emt 0:00:26]} 14. Be3 {[%emt 0:00:49]} a6 {[%emt 0:00:43]} 15. Nbd4 {[%emt 0:00:10]} b5 {[%emt 0:02:57]} 16. Bb3 {[%emt 0:08:53]} Bb7 {[%emt 0:02:09]} 17. Bc2 {[%emt 0:15:37]} Rc8 {[%emt 0:01:48]} 18. Nxc6 {[%emt 0:03:39]} Rxc6 {[%emt 0:05:11]} 19. Nd4 {[%emt 0:00:16]} Rc3 {[%emt 0:01:28]} 20. Bd2 {[%emt 0:01:21]} Rc4 {[%emt 0:00:22]} 21. Be3 {[%emt 0:03:58]} Bf6 {[%emt 0:01:36]} 22. Rfd1 {[%emt 0:05:41]} Nd6 {[%emt 0:04:36]} 23. Bb3 {[%emt 0:02:18]} Rc8 {[%emt 0:09:23]} 24. f3 {[%emt 0:02:10]} Rc3 {[%emt 0:05:39]} 25. Rab1 {[%emt 0:04:02]} Qb8 {[%emt 0:04:04]} 26. Bf2 {[%emt 0:01:24]} Rfc8 {[%emt 0:04:18]} 27. e5 {[%emt 0:01:26]} Be7 {[%emt 0:03:47]} 28. exd6 {[%emt 0:01:01]} Bxd6 {[%emt 0:00:10]} 29. g3 {[%emt 0:01:41]} Be5 {[%emt 0:02:48]} 30. Rd3 {[%emt 0:01:52]} Bf6 {[%emt 0:06:15]} 31. Qd2 {[%emt 0:03:54]} Bg5 {[%emt 0:06:58]} 32. f4 {[%emt 0:01:06]} Rxd3 {[%emt 0:01:06]} 33. Qxd3 {[%emt 0:00:09]} Bf6 {[%emt 0:01:05]} 34. Bc2 {[%emt 0:00:42]} g6 {[%emt 0:00:33]} 35. Nb3 {[%emt 0:07:10]} Rc3 {[%emt 0:03:29]} 36. Qd2 {[%emt 0:01:42]} Qc7 {[%emt 0:00:56]} 37. Nc5 {[%emt 0:03:06]} d5 {[%emt 0:10:29]} 38. Rc1 {[%emt 0:02:27]} Rxa3 {[%emt 0:02:48]} 39. Bd4 {[%emt 0:01:31]} Bxd4+ {[%emt 0:04:22]} 40. Qxd4 {[%emt 0:00:08]} Ba8 {[%emt 0:02:23]} 41. Qb2 {[%emt 0:30:13]} Re3 {[%emt 0:33:31]} 42. Kf2 {[%emt 0:00:55]} d4 {[%emt 0:00:00]} 43. Bd1 {[%emt 0:00:00]} Qc6 {[%emt 0:00:00]} 44. Qxd4 {[%emt 0:00:00]} Ra3 {[%emt 0:00:00]} 45. Qd8+ {[%emt 0:00:00]} Kg7 {[%emt 0:00:00]} 46. Nxe6+ {[%emt 0:00:00]} Qxe6 {[%emt 0:00:00]} 47. Rc8 {[%emt 0:00:00]} Qe3+ {[%emt 0:00:00]} 48. Kf1 {[%emt 0:00:00]} Qd3+ {[%emt 0:00:00]} 49. Qxd3 {[%emt 0:00:00]} Rxd3 {[%emt 0:00:00]} 50. Be2 {[%emt 0:00:00]} Be4 {[%emt 0:00:00]} 51. Bxd3 {[%emt 0:00:00]} Bxd3+ {[%emt 0:00:00]} 52. Kf2 {[%emt 0:00:00]} Bc4 {[%emt 0:00:22]} 53. Ra8 {[%emt 0:00:00]} Kh6 {[%emt 0:00:15]} 54. Rxa6 {[%emt 0:00:00]} Kh5 {[%emt 0:00:14]} 55. h3 {[%emt 0:00:00]} h6 {[%emt 0:01:45]} 56. Rc6 {[%emt 0:00:00]} Bd3 {[%emt 0:02:21]} 57. Rc5+ {[%emt 0:00:00]} f5 {[%emt 0:00:43]} 58. g4+ {[%emt 0:00:23]} Kh4 {[%emt 0:00:10]} 59. gxf5 {[%emt 0:00:13]} gxf5 {[%emt 0:01:04]} 60. Ke3 {[%emt 0:00:06]} Be4 {[%emt 0:00:49]} 61. Rxb5 {[%emt 0:00:19]} Kxh3 {[%emt 0:00:47]} 62. Re5 {[%emt 0:01:09]} Kg3 {[%emt 0:03:05]} 63. Rxe4 {[%emt 0:00:13]} fxe4 {[%emt 0:00:05]} 64. Kxe4 {[%emt 0:00:06]} h5 {[%emt 0:00:03]} 65. f5 {[%emt 0:00:38]} h4 {[%emt 0:00:07]} 66. f6 {[%emt 0:24:43]} h3 67. f7 {[%emt 0:00:00]} h2 {[%emt 0:00:12]} 68. f8=Q {[%emt 0:01:00]} h1=Q+ {[%emt 0:00:12]} 69. Ke5 {[%emt 0:00:00]} Qe1+ {[%emt 0:01:13]} 70. Kf6 {[%emt 0:00:00]} Qc3+ {[%emt 0:01:01]} 71. Kf7 {[%emt 0:00:00]} Qc4+ {[%emt 0:00:35]} 72. Kg7 {[%emt 0:00:00]} Qd4+ {[%emt 0:00:20]} 73. Kg8 {[%emt 0:00:00]} Qc4+ {[%emt 0:01:32]} 74. Kh8 {[%emt 0:00:00]} Qh4+ {[%emt 0:00:20]} 75. Kg8 {[%emt 0:00:00]} Qc4+ {[%emt 0:00:31]} 76. Qf7 {[%emt 0:00:00]} Qxb4 {[%emt 0:00:23]} 77. Qc7+ {[%emt 0:00:00]} Qf4 {[%emt 0:00:16]} 78. Qc2 {[%emt 0:00:00]} Qg4+ {[%emt 0:01:02]} 79. Kh8 {[%emt 0:00:00]} Qh4+ {[%emt 0:00:38]} 80. Qh7 {[%emt 0:00:00]} Qxh7+ {[%emt 0:03:35]} 1/2-1/2

[Event "DFMM-LV 2023"]
[Site "Braunfels"]
[Date "2023.06.10"]
[Round "4.17"]
[White "Hund, Sarah"]
[Black "Rogule, Laura"]
[Result "1/2-1/2"]
[Annotator "TA"]
[ECO "B22"]
[WhiteElo "1977"]
[BlackElo "2218"]
[PlyCount "95"]
[EventDate "2023.06.09"]
[EventType "team-tourn"]
[EventCountry "GER"]
[SourceTitle "playchess.com"]
[Source "ChessBase"]
[SourceQuality "1"]
[TimeControl "40/5400+30:1800+30"]

{[%evp 12,95,9,10,40,20,41,-14,14,-41,-35,-38,0,-51,-52,-53,-49,-48,10,13,10,13,11,0,0,0,0,0,0,0,0,-26,0,0,25,-33,25,28,40,0,0,0,0,0,132,140,140,136,121,119,139,145,211,204,291,275,339,327,252,80,80,80,80,80,80,80,80,59,76,41,70,0,8,8,8,0,0,0,0,0,0,0,0,0,0,0]} 1. e4 {[%emt 0:00:03]} c5 {[%emt 0:00:05]} 2. c3 {[%emt 0:00:11]} d5 {[%emt 0:04:39]} 3. exd5 {[%emt 0:00:52]} Qxd5 {[%emt 0:00:07]} 4. d4 {[%emt 0:00:29]} Nc6 {[%emt 0:09:35]} 5. Nf3 {[%emt 0:00:42]} Bg4 {[%emt 0:05:18]} 6. dxc5 {[%emt 0:03:12]} Qxd1+ {[%emt 0:24:22]} 7. Kxd1 {[%emt 0:00:08]} e5 {[%emt 0:13:51][%cal Be7e5,Be5e4][%mdl 32] B22: Sicilian: 2 c3.} (7... e6 $5 {[%cal Ra8d8]}) 8. b4 {[%emt 0:04:20]} a5 {[%emt 0:02:42]} 9. Bb5 {[%emt 0:06:08]} (9. b5 $1 $14 Nd8 10. c6) 9... Nge7 {[%emt 0:04:44]} 10. a3 {[%emt 0:06:24]} (10. Kc2 $11) 10... axb4 $15 {[%emt 0:03:27]} 11. cxb4 {[%emt 0:01:26]} O-O-O+ {[%emt 0:03:46]} 12. Nbd2 {[%emt 0:05:13]} (12. Ke1 $1 $11) 12... e4 {[%emt 0:09:28][%mdl 64] [#] Pin} 13. Bxc6 {[%emt 0:04:59]} Nxc6 {[%emt 0:01:32]} (13... bxc6 14. h3 $11) 14. h3 $1 {[%emt 0:03:09] [#] White is weak on the light squares} Bf5 $146 {[%emt 0:03:22]} ({Don't take} 14... Bxf3+ 15. gxf3 exf3 16. Bb2 $14) (14... Be6 $15 15. Ng5 Bd5) ({Predecessor:} 14... exf3 15. hxg4 fxg2 16. Rg1 h5 17. gxh5 Rxh5 18. Rxg2 Nd4 19. Rg1 g6 20. Ra2 Bh6 21. Rf1 Bf4 22. f3 Nb3 23. Rb2 Nxd2 24. Bxd2 Rh2 {0-1 Andreescu,D (1945)-Secheres,A (2166) ROM-chT2 Olanesti 2013 (6.4)}) 15. Ng5 $11 {[%emt 0:11:00]} Bg6 {[%emt 0:04:20]} 16. Re1 $1 {[%emt 0:04:15]} f5 {[%emt 0:04:18]} 17. Ne6 {[%emt 0:07:08] Prevents Nd4.} Rd7 {[%emt 0:00:19]} 18. Bb2 {[%emt 0:02:26]} Bf7 {[%emt 0:01:02]} 19. Nxf8 {[%emt 0:05:12]} (19. Bxg7 $2 {perishes.} Bxg7 20. Nxg7 Rhd8 $19) 19... Rxf8 {[%emt 0:00:08]} 20. Kc2 {[%emt 0:04:59]} Rfd8 {[%emt 0:00:18]} 21. Nf1 {[%emt 0:01:27]} (21. Rad1 $5 {[%cal Rc2c1]}) 21... Rd3 {[%emt 0:01:01][%mdl 1024] Black has compensation.} (21... Nd4+ {simplifies} 22. Bxd4 Rxd4 23. h4 Kc7) 22. Bc3 {[%emt 0:04:34]} g6 {[%emt 0:01:08]} (22... Rxc3+ {simplifies} 23. Kxc3 Rd3+ 24. Kb2 Rb3+) 23. Ne3 {[%emt 0:03:41]} (23. Kb2 $11) 23... f4 {[%emt 0:00:49]} (23... Nd4+ $15 24. Kb2 Nb5) 24. Ng4 $1 {[%emt 0:01:37]} Nd4+ {[%emt 0:00:56]} 25. Kb2 {[%emt 0:05:06] [#] Ne5 would be deadly.} (25. Bxd4 {simplifies} R3xd4 26. Ne5 Be6 27. Kc3) 25... Nb5 $1 {[%emt 0:00:43]} 26. Rac1 {[%emt 0:00:49]} ({Not} 26. Ne5 $2 Rxc3 27. Nxf7 Rd2+ 28. Kb1 Rxf2 $19) 26... Nxc3 {[%emt 0:00:47]} 27. Rxc3 {[%emt 0:00:05]} Rxc3 {[%emt 0:00:30]} (27... Rd2+ $11 28. Rc2 R2d3) 28. Kxc3 {[%emt 0:00:04][%mdl 4096] Endgame KRB-KRN} Rd3+ {[%emt 0:00:09]} 29. Kc2 {[%emt 0:01:48] Hoping for Ne5.} Bb3+ {[%emt 0:00:44]} 30. Kb2 {[%emt 0:00:31] Black must now prevent Ne5.} Bd5 {[%emt 0:00:29]} 31. Nf6 {[%emt 0:01:39][%csl LRe4,LRh7] aiming for Nxd5.} Bc6 {[%emt 0:00:37]} (31... g5 $16 {might work better.}) 32. Nxe4 $18 {[%emt 0:03:17]} Bxe4 {[%emt 0:00:09]} (32... Kd7 {keeps fighting.} 33. f3 h6) 33. Rxe4 {[%emt 0:00:02] KR-KR} Rd2+ {[%emt 0:00:13]} 34. Kc3 {[%emt 0:01:04]} Rxf2 {[%emt 0:00:04]} 35. Kd4 $2 {[%emt 0:02:27]} (35. b5 $18 {is more deadly.}) 35... g5 $16 {[%emt 0:00:19]} 36. Re8+ {[%emt 0:01:43]} Kd7 {[%emt 0:00:14]} 37. Rh8 {[%emt 0:00:05]} Rxg2 {[%emt 0:00:19]} 38. Rxh7+ {[%emt 0:00:10]} Kc8 {[%emt 0:01:52]} 39. Ke4 {[%emt 0:03:22]} Rg3 {[%emt 0:00:55]} 40. h4 {[%emt 0:02:01]} Re3+ {[%emt 0:00:30]} 41. Kf5 {[%emt 0:31:16] White is more active.} ({White should try} 41. Kd4 $1 $14 gxh4 42. Rxh4) 41... gxh4 {[%emt 0:02:04] The position is equal.} 42. Kxf4 {[%emt 0:00:00]} Rxa3 {[%emt 0:01:15]} 43. Ke5 {[%emt 0:00:00]} Rh3 {[%emt 0:12:11]} 44. Kd5 {[%emt 0:00:00]} Rh1 {[%emt 0:03:26]} 45. Kd6 {[%emt 0:00:00][%cal Rh7h8]} Rd1+ {[%emt 0:01:08]} 46. Ke6 {[%emt 0:00:00]} Re1+ {[%emt 0:01:26]} 47. Kd5 {[%emt 0:00:00]} Rh1 {[%emt 0:01:48]} 48. Kd6 {[%emt 0:00:00] Black escapes into a draw.   Weighted Error Value: White=0.19 (very precise) /Black=0.18 (very precise)} 1/2-1/2

[Event "DFMM-LV 2023"]
[Site "Braunfels"]
[Date "2023.06.10"]
[Round "4.18"]
[White "Otikova, Elina"]
[Black "Novikova, Margarita"]
[Result "1/2-1/2"]
[Annotator "TA"]
[ECO "C42"]
[WhiteElo "2047"]
[BlackElo "1985"]
[PlyCount "102"]
[EventDate "2023.06.09"]
[EventType "team-tourn"]
[EventCountry "GER"]
[SourceTitle "playchess.com"]
[Source "ChessBase"]
[SourceQuality "1"]
[TimeControl "40/5400+30:1800+30"]

{[%evp 10,102,16,33,44,48,36,0,0,0,0,0,0,0,1,1,4,0,16,-3,-11,-22,-16,-28,0,-40,-32,-148,-1,-10,-15,-13,-3,-12,-3,-53,-48,-53,-43,-51,-31,-35,-34,-59,-58,-91,-85,-101,-88,-101,-102,-119,-111,-150,-131,-122,-114,-126,-92,-104,0,0,0,-9,-9,-12,0,0,0,0,-3,-29,-28,-60,-35,-43,-17,-27,-27,-27,-29,-31,-22,-32,-33,-33,-33,-91,0,-33,0,-79,0,-8,0]} 1. e4 {[%emt 0:00:02]} e5 {[%emt 0:00:03]} 2. Nf3 {[%emt 0:00:07]} Nf6 {[%emt 0:00:04]} 3. Nxe5 {[%emt 0:03:48]} d6 {[%emt 0:00:38]} 4. Nf3 {[%emt 0:00:27]} Nxe4 {[%emt 0:01:17]} 5. c4 {[%emt 0:03:26]} Be7 {[%emt 0:06:52]} 6. d4 {[%emt 0:01:32]} O-O {[%emt 0:05:27] C42: Petroff Defence: 3 Nxe5 and unusual White 3rd moves.} 7. Bd3 {[%emt 0:01:20]} d5 {[%emt 0:05:38] has lost popularity (7...Nf6).} 8. Qc2 {[%emt 0:02:46]} Nf6 {[%emt 0:09:02]} 9. Be3 {[%emt 0:06:35] [#]} dxc4 $146 {[%emt 0:00:43]} ({Predecessor:} 9... c5 10. cxd5 cxd4 11. Nxd4 Qxd5 12. Nc3 Qh5 13. h3 Nc6 14. Nf5 Bxf5 15. Bxf5 Nb4 {1-0 Vuckovic,S-Stankovic,D (2208) SRB-chT2 East 2006 (5.2)}) 10. Bxc4 {[%emt 0:00:30]} Nc6 {[%emt 0:04:08][%cal Bb8c6,Bc6e7,Be7g6][%mdl 32]} 11. a3 {[%emt 0:12:15] Against Nb4} Bg4 {[%emt 0:03:18] ...Bxf3 would be deadly.} 12. Nbd2 {[%emt 0:00:11]} Nd5 {[%emt 0:00:51]} 13. O-O {[%emt 0:08:03]} Bf6 {[%emt 0:01:32]} 14. Bb5 {[%emt 0:11:25]} (14. Rac1 {keeps more tension.} Re8 15. Rfe1 a6 16. h3) 14... Nce7 {[%emt 0:07:37]} 15. h3 {[%emt 0:13:06]} Bf5 {[%emt 0:01:40]} 16. Ne4 {[%emt 0:00:47]} Ng6 {[%emt 0:17:19]} 17. Nxf6+ {[%emt 0:01:58]} (17. Bd3 $5 {[%cal Re4f6]} Kh8 18. Nc5 Bxd3 19. Qxd3 $11) 17... Qxf6 {[%emt 0:00:01]} 18. Qc5 {[%emt 0:06:06] [#]} (18. Bd3 $15 Bxd3 19. Qxd3) 18... Be6 {[%emt 0:15:42]} ({Black should try} 18... Be4 $1 $17 {[%cal Re4f3]} 19. Ng5 Bxg2 20. Kxg2 c6) 19. Bg5 $11 {[%emt 0:10:04]} Qf5 {[%emt 0:00:01] White must now prevent ...b6.} 20. Rad1 {[%emt 0:00:58] aiming for Bd3.} Ngf4 {[%emt 0:00:37] Wards off Bd3} 21. Bxf4 {[%emt 0:02:16]} Qxf4 {[%emt 0:00:01]} 22. Qc1 {[%emt 0:06:48]} (22. Rfe1 $11) 22... Qxc1 $15 {[%emt 0:03:41]} 23. Rxc1 {[%emt 0:00:04]} c6 {[%emt 0:00:08]} 24. Bc4 {[%emt 0:00:51]} Nf4 {[%emt 0:01:10]} 25. Rfe1 {[%emt 0:03:17]} Rad8 {[%emt 0:01:24]} 26. Bxe6 {[%emt 0:04:08]} Nxe6 {[%emt 0:00:06]} 27. Red1 {[%emt 0:00:36]} Rd5 {[%emt 0:00:51]} 28. Rd2 {[%emt 0:00:19]} Rfd8 {[%emt 0:00:08][%cal Re6d4]} 29. Rcd1 {[%emt 0:00:10]} g5 {[%emt 0:03:14]} 30. Kh2 {[%emt 0:00:49]} h5 {[%emt 0:00:36]} 31. g4 {[%emt 0:00:27]} hxg4 {[%emt 0:00:02]} 32. hxg4 {[%emt 0:00:04]} Kg7 {[%emt 0:02:29]} 33. Kg3 {[%emt 0:00:28]} Rh8 {[%emt 0:02:19]} 34. Re1 {[%emt 0:00:17]} Nf4 {[%emt 0:00:19]} (34... Kg6 $17 {Strongly threatening ...Nf4.} 35. Re4 Rd6) 35. Nxg5 $1 $11 {[%emt 0:00:37][%mdl 64] Remove Defender} Nh5+ {[%emt 0:03:16]} 36. gxh5 {[%emt 0:00:05]} Rxg5+ {[%emt 0:00:00][%mdl 4096] Endgame KRR-KRR} 37. Kf4 {[%emt 0:00:19]} Rhxh5 {[%emt 0:01:51]} 38. Re5 {[%emt 0:01:09]} Kf6 {[%emt 0:00:42]} 39. Rxg5 {[%emt 0:00:48]} Rxg5 {[%emt 0:00:01] KR-KR} 40. Ke4 {[%emt 0:00:48]} Ke6 {[%emt 0:01:20]} 41. f4 {[%emt 0:07:43]} Rh5 {[%emt 0:04:50]} 42. Re2 {[%emt 0:01:43]} Rh3 {[%emt 0:03:39][%csl Ge6][%cal Rf7f5]} 43. f5+ {[%emt 0:00:40]} Kf6 {[%emt 0:00:10]} 44. Rf2 {[%emt 0:01:49]} Rh4+ {[%emt 0:02:29]} 45. Kd3 {[%emt 0:00:47]} Rg4 {[%emt 0:02:53]} 46. Ke3 {[%emt 0:00:50]} Rg1 {[%emt 0:02:02]} 47. Ke4 {[%emt 0:01:44]} Rh1 {[%emt 0:03:07]} 48. Ke3 {[%emt 0:01:32] [#]} (48. Rf3 $15) 48... Rh4 {[%emt 0:00:29]} (48... a5 $1 $17) 49. Kd3 $15 {[%emt 0:01:07]} Rg4 {[%emt 0:01:06]} (49... Rh5 $15) 50. Ke3 $17 {[%emt 0:00:37]} Ke7 {[%emt 0:03:47]} (50... a6 $17) 51. Rh2 {[%emt 0:02:09]} Kf6 {[%emt 0:01:43] Weighted Error Value: White=0.16 (very precise) /Black=0.18 (very precise)} 1/2-1/2

[Event "DFMM-LV 2023"]
[Site "Braunfels"]
[Date "2023.06.10"]
[Round "4.20"]
[White "Safonova, Valeria"]
[Black "Haug, Mara"]
[Result "1/2-1/2"]
[Annotator "NA RC COMBH"]
[ECO "B20"]
[WhiteElo "1753"]
[BlackElo "1754"]
[PlyCount "94"]
[EventDate "2023.06.09"]
[EventType "team-tourn"]
[EventCountry "GER"]
[SourceTitle "playchess.com"]
[Source "ChessBase"]
[SourceQuality "1"]
[TimeControl "40/5400+30:1800+30"]

1. e4 {[%emt 0:00:02]} c5 {[%emt 0:00:09]} 2. b3 {[%emt 0:00:06]} Nc6 {[%emt 0:01:03]} 3. Bb2 {[%emt 0:00:05]} e6 {[%emt 0:02:01]} 4. Nc3 {[%emt 0:07:47]} Nf6 {[%emt 0:02:00]} 5. Bb5 {[%emt 0:05:46]} Be7 {[%emt 0:03:26]} 6. Nge2 {[%emt 0:07:01]} a6 {[%emt 0:04:53]} 7. Bxc6 {[%emt 0:00:06]} bxc6 {[%emt 0:00:29]} 8. d3 {[%emt 0:00:33]} O-O {[%emt 0:00:30]} 9. O-O {[%emt 0:00:33]} Qc7 {[%emt 0:02:44]} 10. f4 {[%emt 0:02:21]} d5 {[%emt 0:00:33]} 11. Ng3 {[%emt 0:03:56]} Rd8 {[%emt 0:10:18]} 12. e5 {[%emt 0:06:39]} Nd7 {[%emt 0:00:18]} 13. Qg4 {[%emt 0:07:42]} Kh8 {[%emt 0:09:46]} 14. Rae1 {[%emt 0:20:46]} a5 {[%emt 0:05:48]} 15. Na4 {[%emt 0:02:33]} Nb6 {[%emt 0:03:40]} 16. Nxb6 {[%emt 0:06:17]} Qxb6 {[%emt 0:00:04]} 17. f5 {[%emt 0:02:16]} Rg8 {[%emt 0:12:18]} 18. f6 {[%emt 0:07:23]} gxf6 {[%emt 0:02:59]} 19. Qh4 {[%emt 0:01:24]} Qc7 {[%emt 0:08:58]} 20. exf6 {[%emt 0:04:47]} Bd6 {[%emt 0:00:40]} 21. Nh5 {[%emt 0:00:16]} Rg6 {[%emt 0:02:05]} 22. Ng7 {[%emt 0:02:49]} Bd7 {[%emt 0:04:37]} 23. Rf3 {[%emt 0:00:52]} e5 {[%emt 0:01:11]} 24. Nf5 {[%emt 0:00:34]} Bxf5 {[%emt 0:04:56]} 25. Rxf5 {[%emt 0:00:01]} h6 {[%emt 0:02:33]} 26. Rh5 {[%emt 0:01:20]} Kh7 {[%emt 0:00:03]} 27. Bc1 {[%emt 0:00:23]} Bf8 {[%emt 0:00:14]} 28. Re3 {[%emt 0:00:34]} Qd6 {[%emt 0:00:44]} 29. Rhxe5 {[%emt 0:04:41]} Qxf6 {[%emt 0:01:10]} 30. Qxf6 {[%emt 0:00:21]} Rxf6 {[%emt 0:00:01]} 31. Re8 {[%emt 0:00:07]} Rxe8 {[%emt 0:00:52]} 32. Rxe8 {[%emt 0:00:04]} Bg7 {[%emt 0:00:31]} 33. Ra8 {[%emt 0:00:51]} Rf5 {[%emt 0:01:36]} 34. Be3 {[%emt 0:00:53]} Bc3 {[%emt 0:01:27]} 35. Bxc5 {[%emt 0:01:35]} Kg6 {[%emt 0:03:11]} 36. Ra6 {[%emt 0:01:05]} Rf6 {[%emt 0:00:39]} 37. Ba7 {[%emt 0:01:49]} Kh5 {[%emt 0:01:07]} 38. g3 {[%emt 0:00:42]} Kg4 {[%emt 0:00:27]} 39. Kg2 {[%emt 0:00:33]} h5 {[%emt 0:01:52]} 40. Bb8 {[%emt 0:01:19]} h4 {[%emt 0:03:50]} 41. h3+ {[%emt 0:30:46]} Kh5 {[%emt 0:30:41]} 42. g4+ {[%emt 0:00:00]} Kg6 {[%emt 0:00:00]} 43. Bc7 {[%emt 0:00:00]} Bd4 {[%emt 0:00:00]} 44. Bxa5 {[%emt 0:00:00]} Rf2+ {[%emt 0:00:00]} 45. Kh1 {[%emt 0:00:00]} Rf1+ {[%emt 0:00:00]} 46. Kg2 {[%emt 0:00:00]} Rf2+ {[%emt 0:00:00]} 47. Kh1 {[%emt 0:00:00]} Rf1+ {[%emt 0:00:00]} 1/2-1/2

[Event "DFMM-LV 2023"]
[Site "Braunfels"]
[Date "2023.06.10"]
[Round "4.21"]
[White "Wellenreich, Jenni"]
[Black "Hartung, Katja"]
[Result "1/2-1/2"]
[Annotator "TA"]
[ECO "D31"]
[WhiteElo "1828"]
[BlackElo "1944"]
[PlyCount "68"]
[EventDate "2023.06.09"]
[EventType "team-tourn"]
[EventCountry "GER"]
[SourceTitle "playchess.com"]
[Source "ChessBase"]
[SourceQuality "1"]
[TimeControl "40/5400+30:1800+30"]

{[%evp 13,68,22,56,0,0,0,0,0,0,0,0,0,-14,-3,4,-87,0,-92,30,-61,79,-80,-72,-119,-144,-141,-128,-148,-141,-194,-185,-236,-229,-217,-22,-20,-20,-23,-21,-21,-29,-33,-23,-30,-36,-39,-11,-11,-11,-25,-21,-38,0,-6,0,0,0]} 1. d4 {[%emt 0:00:11]} d5 {[%emt 0:00:12]} 2. c4 {[%emt 0:00:20]} e6 {[%emt 0:00:42]} 3. Nc3 {[%emt 0:00:08]} c6 {[%emt 0:00:08]} 4. Nf3 {[%emt 0:00:41]} dxc4 {[%emt 0:02:28]} 5. a4 {[%emt 0:01:33]} Bb4 {[%emt 0:02:50]} 6. e3 {[%emt 0:02:42]} b5 {[%emt 0:00:07]} 7. Bd2 {[%emt 0:01:29]} Nf6 {[%emt 0:00:30]} 8. b3 {[%emt 0:04:10] D31: Queen's Gambit Declined: Semi-Slav without ...Nf6 (+ Marshall Gambit and Noteboom) and Exchange Variation lines without ...Nf6.} (8. axb5 $14 Bxc3 {[%mdl 64] Remove Defender} 9. Bxc3) 8... Bxc3 $11 {[%emt 0:03:33]} 9. Bxc3 {[%emt 0:00:26]} Nd5 {[%emt 0:00:21]} 10. Qd2 {[%emt 0:02:09]} Nxc3 {[%emt 0:13:16]} 11. Qxc3 {[%emt 0:00:21]} a5 {[%emt 0:00:17]} 12. bxc4 {[%emt 0:06:42]} b4 $36 {[%emt 0:00:10][%mdl 2048] Black has the initiative.} 13. Qc2 {[%emt 0:00:59] [#]} Nd7 $146 {[%emt 0:02:27]} ({Predecessor:} 13... c5 14. Bd3 h6 15. O-O O-O 16. Rfd1 Qc7 17. d5 Ra6 18. Nd2 Nd7 19. e4 e5 {0-1 Nguyen,P-Pham Thi Ngoc,T (2078) VIE-ch (Women) Places 2005 (1.1)}) 14. e4 {[%emt 0:05:31]} (14. c5 $11) 14... Qf6 {[%emt 0:06:24]} ({Black should try} 14... O-O $17 {[%cal Oe6e5]} 15. Rd1 Rb8) 15. Rd1 {[%emt 0:04:23]} (15. e5 $11 Qg6 16. Qxg6 hxg6 17. c5) 15... h6 {[%emt 0:03:34]} (15... c5 $17) 16. Bd3 {[%emt 0:03:44]} (16. e5 $11 Qd8 17. Bd3) 16... Rb8 {[%emt 0:05:09]} (16... e5 $15) 17. Qb3 $2 {[%emt 0:05:20] [#]} (17. e5 $16 Qe7 18. c5) 17... e5 {[%emt 0:06:51]} 18. Nxe5 {[%emt 0:08:07]} (18. Bc2 $142) 18... Nxe5 $17 {[%emt 0:01:42]} 19. dxe5 {[%emt 0:00:46]} Qxe5 {[%emt 0:00:20]} 20. O-O {[%emt 0:00:48]} O-O {[%emt 0:01:28]} 21. f3 {[%emt 0:11:56]} (21. f4 $17 {is a better defense.} Qc5+ 22. Kh1) 21... Be6 {[%emt 0:04:40]} 22. Be2 {[%emt 0:02:24]} (22. f4 $142 Qc5+ 23. Kh1) 22... Rfd8 $19 {[%emt 0:01:39]} 23. Qe3 {[%emt 0:04:24]} Qc3 $2 {[%emt 0:09:46] [#]} (23... Qb2 $19 {...b3 is the strong threat.} 24. f4 Qa2) 24. Rxd8+ $11 {[%emt 0:06:34]} Rxd8 {[%emt 0:00:47][%cal Bb8d8,Bd8d2,Bd2a2,Ba2a4][%mdl 32]} 25. Qxc3 {[%emt 0:00:18]} bxc3 {[%emt 0:00:17][%mdl 4096] Endgame KRB-KRB} 26. Rc1 $1 {[%emt 0:01:16]} Rd2 {[%emt 0:02:04]} 27. Kf1 {[%emt 0:01:31]} Ra2 {[%emt 0:00:54]} ({Don't do} 27... c2 28. Ke1 Rd7 29. Rxc2 $14) 28. Rxc3 {[%emt 0:03:23]} Rxa4 {[%emt 0:04:27]} 29. Ke1 {[%emt 0:04:22]} c5 {[%emt 0:02:36]} 30. Kd2 {[%emt 0:02:20]} Kf8 {[%emt 0:01:59]} 31. Rc2 {[%emt 0:04:55]} Ke7 {[%emt 0:06:02]} 32. Kc3 {[%emt 0:00:14]} Kd7 {[%emt 0:00:42]} 33. Rb2 {[%emt 0:00:58]} Kc6 {[%emt 0:01:28]} 34. f4 {[%emt 0:01:55]} g6 {[%emt 0:06:36] Weighted Error Value: White=0.35/Black=0.39} 1/2-1/2